fUSD/lending_fUSD_20250212
["ID","MTS","AMOUNT","RATE_DAILY","PERIOD"]
[352836840,1739355038649,-186.32442448,0.00016438,2]
[352836842,1739355038662,-317.28837868,0.00016438,2]
[352836844,1739355038671,-503.4150702,0.00016438,2]
[352836846,1739355038681,-500.0,0.00016438,2]
[352836848,1739355038691,-500.0,0.00016438,2]
[352836850,1739355038705,-500.0,0.00016438,2]
[352836852,1739355038714,-501.66726747,0.00016438,2]
[352836854,1739355038724,-500.0,0.00016438,2]
[352836856,1739355038733,-502.78218253,0.00016438,2]
[352836858,1739355038745,-500.0,0.00016438,2]
[352836860,1739355038755,-500.0,0.00016438,2]
[352836862,1739355038764,-500.0,0.00016438,2]
[352836864,1739355038776,-500.0,0.00016438,2]
[352836866,1739355038785,-500.0,0.00016438,2]
[352836868,1739355038795,-503.29029982,0.00016438,2]
[352836870,1739355038804,-500.0,0.00016438,2]
[352836872,1739355038814,-500.0,0.00016438,2]
[352836874,1739355038824,-517.1615196,0.00016438,2]
[352836876,1739355038834,-500.0,0.00016438,2]
[352836878,1739355038843,-500.0,0.00016438,2]
[352836881,1739355038856,-500.0,0.00016438,2]
[352836883,1739355038865,-507.79630129,0.00016438,2]
[352836885,1739355038876,-500.0,0.00016438,2]
[352836887,1739355038886,-500.0,0.00016438,2]
[352836889,1739355038895,-500.0,0.00016438,2]
[352836891,1739355038905,-500.0,0.00016438,2]
[352836893,1739355038914,-500.0,0.00016438,2]
[352836895,1739355038923,-500.0,0.00016438,2]
[352836897,1739355038933,-500.0,0.00016438,2]
[352836899,1739355038943,-500.0,0.00016438,2]
[352836901,1739355038957,-500.0,0.00016438,2]
[352836903,1739355038968,-600.85792663,0.00016438,2]
[352836905,1739355038977,-500.0,0.00016438,2]
[352836907,1739355038986,-500.0,0.00016438,2]
[352836909,1739355038996,-500.0,0.00016438,2]
[352836912,1739355039011,-500.0,0.00016438,2]
[352836914,1739355039020,-500.0,0.00016438,2]
[352836916,1739355039030,-500.0,0.00016438,2]
[352836918,1739355039040,-500.0,0.00016438,2]
[352836920,1739355039050,-500.0,0.00016438,2]
[352836922,1739355039059,-500.0,0.00016438,2]
[352836924,1739355039069,-500.0,0.00016438,2]
[352836926,1739355039079,-500.0,0.00016438,2]
[352836928,1739355039088,-254.77590996,0.00016438,2]
[352836930,1739355039100,-245.22409004,0.00016438,2]
[352836932,1739355039110,-500.0,0.00016438,2]
[352836934,1739355039120,-500.0,0.00016438,2]
[352836936,1739355039129,-169.50158,0.00016438,2]
[352836938,1739355039139,-194.71413545,0.00016438,2]
[352836940,1739355039149,-331.78736571,0.00016438,2]
[352836943,1739355039161,-172.35540242,0.00016438,2]
[352836945,1739355039170,-177.15358494,0.00016438,2]
[352836947,1739355039182,-322.84641506,0.00016438,2]
[352836949,1739355039192,-506.61155032,0.00016438,2]
[352836951,1739355039203,-500.0,0.00016438,2]
[352836953,1739355039212,-502.08841038,0.00016438,2]
[352836955,1739355039222,-500.0,0.00016438,2]
[352836957,1739355039231,-500.0,0.00016438,2]
[352836959,1739355039240,-500.0,0.00016438,2]
[352836961,1739355039250,-500.0,0.00016438,2]
[352836963,1739355039260,-500.0,0.00016438,2]
[352836966,1739355039270,-500.0,0.00016438,2]
[352836968,1739355039279,-504.13858831,0.00016438,2]
[352836970,1739355039292,-502.37992106,0.00016438,2]
[352836972,1739355039302,-503.12016863,0.00016438,2]
[352836974,1739355039312,-500.0,0.00016438,2]
[352836976,1739355039321,-500.0,0.00016438,2]
[352836978,1739355039331,-501.72556881,0.00016438,2]
[352836980,1739355039341,-500.0,0.00016438,2]
[352836982,1739355039350,-500.0,0.00016438,2]
[352836984,1739355039360,-500.0,0.00016438,2]
[352836986,1739355039370,-517.32887044,0.00016438,2]
[352836988,1739355039379,-500.0,0.00016438,2]
[352836990,1739355039389,-500.0,0.00016438,2]
[352836992,1739355039398,-500.0,0.00016438,2]
[352836994,1739355039408,-500.0,0.00016438,2]
[352836996,1739355039417,-500.0,0.00016438,2]
[352836998,1739355039427,-504.10576539,0.00016438,2]
[352837000,1739355039437,-599.252898,0.00016438,2]
[352837002,1739355039446,-501.44143011,0.00016438,2]
[352837004,1739355039456,-516.98263943,0.00016438,2]
[352837006,1739355039465,-500.0,0.00016438,2]
[352837008,1739355039475,-500.0,0.00016438,2]
[352837010,1739355039484,-500.0,0.00016438,2]
[352837012,1739355039494,-519.10748399,0.00016438,2]
[352837014,1739355039503,-500.0,0.00016438,2]
[352837017,1739355039518,-563.4986059,0.00016438,2]
[352837018,1739355039527,-500.0,0.00016438,2]
[352837020,1739355039537,-500.0,0.00016438,2]
[352837023,1739355039547,-507.86596143,0.00016438,2]
[352837025,1739355039556,-502.31184132,0.00016438,2]
[352837027,1739355039565,-501.41708895,0.00016438,2]
[352837029,1739355039574,-500.0,0.00016438,2]
[352837031,1739355039583,-500.0,0.00016438,2]
[352837033,1739355039593,-505.42358201,0.00016438,2]
[352837035,1739355039602,-500.0,0.00016438,2]
[352837037,1739355039612,-500.0,0.00016438,2]
[352837039,1739355039622,-500.0,0.00016438,2]
[352837041,1739355039631,-500.0,0.00016438,2]
[352837043,1739355039641,-500.0,0.00016438,2]
[352837045,1739355039651,-501.38168173,0.00016438,2]
[352837047,1739355039661,-500.0,0.00016438,2]
[352837049,1739355039672,-500.0,0.00016438,2]
[352837051,1739355039683,-500.0,0.00016438,2]
[352837053,1739355039694,-500.0,0.00016438,2]
[352837055,1739355039707,-500.0,0.00016438,2]
[352837057,1739355039716,-500.0,0.00016438,2]
[352837059,1739355039726,-506.85358335,0.00016438,2]
[352837061,1739355039736,-500.0,0.00016438,2]
[352837063,1739355039746,-601.75870708,0.00016438,2]
[352837065,1739355039756,-500.0,0.00016438,2]
[352837067,1739355039766,-504.50137656,0.00016438,2]
[352837069,1739355039776,-501.98615083,0.00016438,2]
[352837071,1739355039786,-503.43,0.00016438,2]
[352837073,1739355039797,-1133.9030016,0.00016512,2]
[352837075,1739355039807,-943.42,0.00016515,2]
[352837077,1739355039817,-150.0,0.00016515,2]
[352837079,1739355039826,-340.27,0.00016575,2]
[352837081,1739355039836,-500.0,0.00016575,2]
[352837084,1739355039846,-500.0,0.00016575,2]
[352837086,1739355039855,-500.0,0.00016575,2]
[352837088,1739355039865,-500.0,0.00016575,2]
[352837090,1739355039874,-500.0,0.00016575,2]
[352837092,1739355039884,-322.41778786,0.00016575,2]
[352837094,1739355039894,-500.0,0.00016575,2]
[352837096,1739355039903,-500.0,0.00016575,2]
[352837098,1739355039913,-579.36126551,0.00016575,2]
[352837100,1739355039923,-500.0,0.00016575,2]
[352837102,1739355039932,-500.0,0.00016575,2]
[352837104,1739355039942,-500.0,0.00016575,2]
[352837106,1739355039951,-500.0,0.00016575,2]
[352837108,1739355039961,-500.0,0.00016575,2]
[352837110,1739355039970,-504.00536011,0.00016575,2]
[352837112,1739355039980,-500.0,0.00016575,2]
[352837114,1739355039989,-500.0,0.00016575,2]
[352837116,1739355039999,-500.0,0.00016575,2]
[352837118,1739355040009,-500.0,0.00016575,2]
[352837120,1739355040018,-500.0,0.00016575,2]
[352837122,1739355040032,-500.0,0.00016575,2]
[352837124,1739355040042,-500.0,0.00016575,2]
[352837126,1739355040053,-506.09515639,0.00016575,2]
[352837129,1739355040063,-494.0,0.00016575,2]
[352837131,1739355040072,-500.0,0.00016575,2]
[352837133,1739355040082,-500.0,0.00016575,2]
[352837136,1739355040091,-500.0,0.00016575,2]
[352837138,1739355040101,-500.0,0.00016575,2]
[352837141,1739355040111,-500.0,0.00016575,2]
[352837144,1739355040120,-500.0,0.00016575,2]
[352837147,1739355040130,-500.0,0.00016575,2]
[352837150,1739355040139,-506.6325918,0.00016575,2]
[352837152,1739355040149,-501.84404982,0.00016575,2]
[352837155,1739355040159,-500.0,0.00016575,2]
[352837157,1739355040168,-563.66021327,0.00016575,2]
[352837160,1739355040177,-502.54528306,0.00016575,2]
[352837163,1739355040188,-511.61512778,0.00016575,2]
[352837165,1739355040197,-735.15,0.00016646,2]
[352837168,1739355040208,-500.0,0.00016712,2]
[352837171,1739355040217,-500.0,0.00016712,2]
[352837174,1739355040227,-500.0,0.00016712,2]
[352837176,1739355040236,-500.0,0.00016712,2]
[352837179,1739355040245,-172.45,0.00016712,2]
[352837182,1739355040255,-500.0,0.00016712,2]
[352837185,1739355040264,-503.06,0.00016712,2]
[352837187,1739355040274,-192.89,0.00016712,2]
[352837189,1739355040284,-500.0,0.00016849,2]
[352837192,1739355040293,-500.0,0.00016849,2]
[352837194,1739355040302,-500.0,0.00016901,2]
[352837196,1739355040312,-500.0,0.00016901,2]
[352837198,1739355040321,-500.0,0.00016901,2]
[352837201,1739355040331,-500.0,0.00016986,2]
[352837203,1739355040341,-500.0,0.00016986,2]
[352837205,1739355040350,-2469.241,0.00017011,2]
[352837207,1739355040360,-175.618,0.00017011,2]
[352837210,1739355040370,-250.0,0.0001709,2]
[352837213,1739355040380,-500.0,0.00017123,2]
[352837216,1739355040390,-500.0,0.00017123,2]
[352837219,1739355040400,-492.24,0.00017123,2]
[352837222,1739355040409,-500.0,0.00017154,2]
[352837225,1739355040419,-500.0,0.0001726,2]
[352837228,1739355040429,-629.72,0.0001726,2]
[352837231,1739355040439,-500.0,0.00017397,2]
[352837235,1739355040449,-531.05207118,0.00017398,2]
[352837238,1739355040459,-1000.0,0.00017457,2]
[352837241,1739355040468,-500.0,0.00017534,2]
[352837244,1739355040478,-273.52,0.00017675,2]
[352837248,1739355040489,-431.29,0.00017766,30]
[352837251,1739355040499,-600.0,0.00017808,2]
[352837254,1739355040508,-1104.80754006,0.00017943,2]
[352837256,1739355040518,-500.0,0.00017997,2]
[352837258,1739355040528,-500.0,0.00017997,2]
[352837260,1739355040538,-2000.0,0.00018082,2]
[352837262,1739355040547,-200.0,0.00018082,2]
[352837264,1739355040558,-1121.33985704,0.00018123,2]
[352837266,1739355040567,-496.19,0.00018219,2]
[352837268,1739355040576,-34397.79,0.00018356,2]
[352837270,1739355040586,-2073.0,0.0001843,2]
[352837272,1739355040595,-531.05207118,0.00018459,2]
[352837274,1739355040604,-164.54948087,0.00018514,2]
[352837276,1739355040614,-543.792,0.00018514,2]
[352837278,1739355040624,-317.061,0.00018514,2]
[352837280,1739355040633,-4026.0,0.00018514,2]
[352837282,1739355040643,-150.0,0.00018514,2]
[352837284,1739355040653,-3914.0,0.00018514,2]
[352837286,1739355040663,-1109.0,0.00018514,2]
[352837288,1739355040672,-150.0,0.00018592,2]
[352837290,1739355040683,-150.0,0.00018592,2]
[352837292,1739355040694,-232.19386209,0.00018592,2]
[352837294,1739355040709,-150.36290593,0.00018592,2]
[352837296,1739355040719,-154.55,0.000186,2]
[352837298,1739355040728,-2073.0,0.0001862,2]
[352837300,1739355040738,-2000.0,0.00018751,2]
[352837302,1739355040749,-156.23,0.00018754,2]
[352837304,1739355040758,-2073.0,0.0001881,2]
[352837306,1739355040768,-615.79,0.0001889,2]
[352837308,1739355040780,-500.0,0.00018899,2]
[352837310,1739355040790,-500.0,0.00018899,2]
[352837312,1739355040800,-500.0,0.00018899,2]
[352837314,1739355040810,-500.0,0.00018899,2]
[352837316,1739355040820,-500.0,0.00018899,2]
[352837318,1739355040830,-500.0,0.00018899,2]
[352837319,1739355040840,-500.0,0.00018899,2]
[352837320,1739355040849,-500.0,0.00018899,2]
[352837321,1739355040859,-500.0,0.00018899,2]
[352837322,1739355040869,-500.0,0.00018899,2]
[352837323,1739355040879,-500.0,0.00018899,2]
[352837324,1739355040888,-500.0,0.00018899,2]
[352837325,1739355040898,-603.79456996,0.00018899,2]
[352837326,1739355040908,-500.0,0.00018899,2]
[352837327,1739355040917,-588.36,0.00018899,2]
[352837328,1739355040927,-500.0,0.00018899,2]
[352837329,1739355040937,-500.0,0.00018899,2]
[352837331,1739355040947,-500.0,0.00018899,2]
[352837333,1739355040957,-333.68891168,0.00018899,2]
[352837335,1739355040967,-500.0,0.00018899,2]
[352837337,1739355040977,-500.0,0.00018899,2]
[352837339,1739355040987,-500.0,0.00018899,2]
[352837341,1739355040998,-500.0,0.00018899,2]
[352837343,1739355041008,-500.0,0.00018899,2]
[352837345,1739355041018,-500.0,0.00018899,2]
[352837347,1739355041028,-500.0,0.00018899,2]
[352837349,1739355041038,-500.0,0.00018899,2]
[352837351,1739355041048,-273.66185418,0.00018899,2]
[352837353,1739355041058,-500.0,0.00018899,2]
[352837356,1739355041068,-500.0,0.00018899,2]
[352837358,1739355041077,-500.0,0.00018899,2]
[352837360,1739355041087,-500.0,0.00018899,2]
[352837362,1739355041096,-500.0,0.00018899,2]
[352837364,1739355041106,-500.0,0.00018899,2]
[352837366,1739355041117,-500.0,0.00018899,2]
[352837368,1739355041127,-500.0,0.00018899,2]
[352837370,1739355041137,-500.0,0.00018899,2]
[352837372,1739355041146,-500.0,0.00018899,2]
[352837374,1739355041155,-1000.0,0.00018899,2]
[352837376,1739355041164,-289.15000193,0.00018899,2]
[352837378,1739355041173,-500.0,0.00018899,2]
[352837380,1739355041182,-520.47572492,0.00018899,2]
[352837382,1739355041191,-500.0,0.00018899,2]
[352837384,1739355041201,-500.0,0.00018899,2]
[352837386,1739355041210,-500.0,0.00018899,2]
[352837387,1739355041220,-500.0,0.00018899,2]
[352837390,1739355041229,-500.0,0.00018899,2]
[352837392,1739355041239,-182.64865427,0.00018899,2]
[352837394,1739355041249,-2718.61,0.000189,31]
[352837396,1739355041259,-2718.61,0.000189,31]
[352837398,1739355041269,-2718.61,0.000189,31]
[352837400,1739355041278,-2718.61,0.000189,31]
[352837402,1739355041288,-2718.61,0.000189,31]
[352837404,1739355041297,-2718.61,0.000189,31]
[352837405,1739355041306,-2718.61,0.000189,31]
[352837407,1739355041315,-2718.61,0.000189,31]
[352837410,1739355041326,-2718.61,0.000189,31]
[352837411,1739355041335,-2718.61,0.000189,31]
[352837433,1739355041515,-2718.61,0.000189,31]
[352837436,1739355041552,-2718.61,0.000189,31]
[352837438,1739355041562,-2718.61,0.000189,31]
[352837440,1739355041572,-2718.61,0.000189,31]
[352837442,1739355041583,-2718.61,0.000189,31]
[352837444,1739355041592,-2718.61,0.000189,31]
[352837446,1739355041602,-735.15,0.0001891,2]
[352837448,1739355041611,-2073.0,0.00019,2]
[352837450,1739355041621,-739.3982355,0.00019,2]
[352837452,1739355041631,-500.0,0.00019036,2]
[352837454,1739355041640,-323.97,0.00019036,2]
[352837456,1739355041650,-327.26273649,0.00019036,2]
[352837458,1739355041668,-500.0,0.00019036,2]
[352837459,1739355041677,-500.0,0.00019036,2]
[352837461,1739355041686,-500.0,0.00019036,2]
[352837463,1739355041698,-226.99,0.00019036,2]
[352837465,1739355041709,-500.0,0.00019036,2]
[352837467,1739355041719,-500.0,0.00019036,2]
[352837469,1739355041728,-500.0,0.00019036,2]
[352837471,1739355041739,-500.0,0.00019036,2]
[352837473,1739355041748,-213.14633381,0.00019036,2]
[352837475,1739355041758,-220.98,0.00019036,2]
[352837477,1739355041768,-500.0,0.00019036,2]
[352837479,1739355041778,-513.32,0.00019036,2]
[352837481,1739355041788,-580.96,0.00019036,2]
[352837483,1739355041797,-500.0,0.00019036,2]
[352837484,1739355041807,-340.11,0.00019036,2]
[352837486,1739355041817,-500.0,0.00019036,2]
[352837488,1739355041826,-500.0,0.00019036,2]
[352837490,1739355041837,-500.0,0.00019036,2]
[352837492,1739355041847,-500.0,0.00019036,2]
[352837494,1739355041856,-500.0,0.00019036,2]
[352837496,1739355041866,-500.0,0.00019036,2]
[352837498,1739355041876,-500.0,0.00019036,2]
[352837500,1739355041886,-500.0,0.00019036,2]
[352837502,1739355041897,-500.0,0.00019036,2]
[352837504,1739355041907,-349.45,0.00019036,2]
[352837506,1739355041917,-500.0,0.00019093,2]
[352837508,1739355041929,-500.0,0.00019093,2]
[352837510,1739355041938,-420.25,0.000191,7]
[352837512,1739355041947,-500.0,0.000191,2]
[352837514,1739355041957,-700.0,0.000191,2]
[352837516,1739355041966,-700.0,0.000191,2]
[352837518,1739355041976,-700.0,0.000191,2]
[352837520,1739355041985,-700.0,0.000191,2]
[352837522,1739355041995,-700.0,0.000191,2]
[352837524,1739355042004,-700.0,0.000191,2]
[352837526,1739355042013,-700.0,0.000191,2]
[352837528,1739355042023,-500.0,0.000191,2]
[352837530,1739355042032,-700.0,0.000191,2]
[352837532,1739355042041,-500.0,0.000191,2]
[352837534,1739355042051,-700.0,0.000191,2]
[352837536,1739355042061,-500.0,0.000191,2]
[352837538,1739355042070,-500.0,0.000191,2]
[352837539,1739355042080,-700.0,0.000191,2]
[352837541,1739355042090,-500.0,0.000191,2]
[352837543,1739355042099,-700.0,0.000191,2]
[352837545,1739355042109,-500.0,0.000191,2]
[352837547,1739355042119,-700.0,0.000191,2]
[352837549,1739355042128,-500.0,0.000191,2]
[352837551,1739355042137,-1300.0,0.000191,2]
[352837553,1739355042146,-267.57585055,0.000191,2]
[352837559,1739355042193,-490.57,0.00016397,2]
[352837561,1739355042203,-173.61200866,0.00019,2]
[352837562,1739355042212,-232.42414945,0.000191,2]
[352837564,1739355042221,-500.0,0.000191,2]
[352837566,1739355042231,-500.0,0.000191,2]
[352837567,1739355042240,-800.0,0.000191,2]
[352837569,1739355042250,-500.0,0.000191,2]
[352837571,1739355042260,-500.0,0.000191,2]
[352837572,1739355042270,-500.0,0.000191,2]
[352837574,1739355042279,-500.0,0.000191,2]
[352837576,1739355042289,-500.0,0.000191,2]
[352837578,1739355042299,-500.0,0.000191,2]
[352837579,1739355042308,-500.0,0.000191,2]
[352837581,1739355042318,-500.0,0.00019173,2]
[352837583,1739355042327,-482.12,0.00019173,2]
[352837585,1739355042337,-500.0,0.00019173,2]
[352837587,1739355042347,-544.92,0.00019173,2]
[352837588,1739355042357,-120.71768674,0.00019173,2]
[352837590,1739355042369,-379.28231326,0.00019173,2]
[352837592,1739355042379,-500.0,0.00019173,2]
[352837594,1739355042388,-500.0,0.00019173,2]
[352837595,1739355042397,-500.0,0.00019173,2]
[352837597,1739355042407,-500.0,0.00019173,2]
[352837599,1739355042417,-500.0,0.00019173,2]
[352837601,1739355042427,-500.0,0.00019173,2]
[352837602,1739355042436,-500.0,0.00019173,2]
[352837604,1739355042446,-500.0,0.00019173,2]
[352837606,1739355042456,-500.0,0.00019173,2]
[352837608,1739355042465,-500.0,0.00019173,2]
[352837610,1739355042475,-500.0,0.00019173,2]
[352837611,1739355042483,-150.0,0.00019178,2]
[352837613,1739355042493,-2073.0,0.0001919,2]
[352837615,1739355042502,-500.0,0.0001931,3]
[352837617,1739355042511,-500.0,0.0001931,3]
[352837618,1739355042521,-500.0,0.0001931,3]
[352837620,1739355042530,-329.37,0.0001931,3]
[352837622,1739355042539,-174.29,0.0001931,3]
[352837624,1739355042549,-500.0,0.0001931,3]
[352837626,1739355042559,-362.93553672,0.0001931,3]
[352837628,1739355042571,-137.06446328,0.0001931,3]
[352837630,1739355042581,-226.92,0.0001931,3]
[352837631,1739355042591,-500.0,0.0001931,3]
[352837633,1739355042599,-195.13553672,0.0001931,3]
[352837692,1739355043462,-739.6396624,0.00016438,2]
[352837693,1739355043472,-240.3375912,0.0001931,3]
[352837694,1739355043482,-500.0,0.0001931,3]
[352837695,1739355043491,-500.0,0.0001931,3]
[352837696,1739355043500,-500.0,0.0001931,3]
[352837697,1739355043510,-500.0,0.0001931,3]
[352837698,1739355043520,-150.99,0.00019339,2]
[352837699,1739355043530,-2073.0,0.0001938,2]
[352837700,1739355043539,-2000.0,0.0001942,2]
[352837701,1739355043548,-500.0,0.00019447,3]
[352837702,1739355043559,-500.0,0.00019447,3]
[352837703,1739355043568,-500.0,0.00019447,3]
[352837704,1739355043578,-500.0,0.00019447,3]
[352837705,1739355043587,-500.0,0.00019447,3]
[352837706,1739355043597,-500.0,0.00019447,3]
[352837707,1739355043606,-500.0,0.00019447,3]
[352837708,1739355043615,-500.0,0.00019447,3]
[352837709,1739355043626,-420.26548263,0.00019447,3]
[352837710,1739355043635,-500.0,0.00019447,3]
[352837711,1739355043645,-531.05207118,0.00019519,2]
[352837712,1739355043654,-2073.0,0.0001957,2]
[352837713,1739355043664,-500.0,0.00019584,3]
[352837714,1739355043674,-500.0,0.00019584,3]
[352837715,1739355043684,-500.0,0.00019584,3]
[352837716,1739355043694,-500.0,0.00019584,3]
[352837717,1739355043709,-182.57194662,0.00019584,3]
[352837718,1739355043719,-500.0,0.00019584,3]
[352837719,1739355043728,-500.0,0.00019584,3]
[352837720,1739355043738,-500.0,0.00019584,3]
[352837722,1739355043749,-500.0,0.00019584,3]
[352837724,1739355043759,-1085.66213053,0.000196,2]
[352837726,1739355043768,-1034.87401419,0.000196,2]
[352837728,1739355043780,-1000.0,0.00019639,2]
[352837729,1739355043789,-150.0,0.00019683,2]
[352837731,1739355043798,-500.0,0.00019721,3]
[352837733,1739355043808,-500.0,0.00019721,3]
[352837735,1739355043818,-608.50043987,0.00019721,3]
[352837737,1739355043827,-408.72785694,0.00019721,3]
[352837739,1739355043837,-500.0,0.00019721,3]
[352837741,1739355043847,-500.0,0.00019721,3]
[352837743,1739355043856,-500.0,0.00019721,3]
[352837744,1739355043866,-500.0,0.00019858,3]
[352837745,1739355043875,-500.0,0.00019858,3]
[352837747,1739355043884,-500.0,0.00019858,3]
[352837748,1739355043895,-500.0,0.00019858,3]
[352837749,1739355043905,-275.41759055,0.00019858,3]
[352837750,1739355043915,-500.0,0.00019995,3]
[352837751,1739355043925,-500.0,0.00019995,3]
[352837752,1739355043935,-500.0,0.00019995,3]
[352837753,1739355043947,-347.36,0.00019995,3]
[352837754,1739355043957,-2000.0,0.0002,2]
[352837755,1739355043967,-72807.15954405,0.0002,7]
[352837756,1739355043977,-5021.69496059,0.0002,4]
[352837757,1739355043986,-1500.0,0.0002,5]
[352837758,1739355043995,-150.0,0.0002,5]
[352837759,1739355044005,-150.0,0.0002,5]
[352837760,1739355044015,-3003.666074,0.0002001,2]
[352837761,1739355044024,-2000.0,0.00020089,2]
[352837762,1739355044033,-500.0,0.00020132,3]
[352837763,1739355044043,-496.59569581,0.00020132,3]
[352837764,1739355044053,-500.0,0.00020132,3]
[352837765,1739355044062,-150.0,0.00020187,2]
[352837766,1739355044071,-500.0,0.00020189,2]
[352837767,1739355044081,-500.0,0.00020189,2]
[352837768,1739355044090,-4610.74396071,0.00020202,2]
[352837769,1739355044099,-500.0,0.00020269,3]
[352837770,1739355044109,-500.0,0.00020269,3]
[352837771,1739355044119,-4610.74396071,0.00020277,2]
[352837772,1739355044128,-410.2177828,0.00020295,2]
[352837773,1739355044137,-431.29,0.0002035,30]
[352837774,1739355044148,-4610.74396071,0.00020353,2]
[352837775,1739355044157,-500.0,0.00020406,3]
[352837776,1739355044167,-500.0,0.00020406,3]
[352837777,1739355044176,-4610.74396071,0.00020428,2]
[352837778,1739355044185,-3735.84636602,0.00020433,2]
[352837779,1739355044195,-7384.00645962,0.00020479,2]
[352837780,1739355044205,-4610.74396071,0.00020504,2]
[352837781,1739355044215,-500.0,0.00020533,2]
[352837782,1739355044224,-500.0,0.00020534,2]
[352837783,1739355044233,-500.0,0.00020543,3]
[352837784,1739355044243,-500.0,0.00020543,3]
[352837785,1739355044253,-177.88,0.00020548,2]
[352837786,1739355044262,-450.0,0.00020576,4]
[352837787,1739355044271,-501.88563049,0.00020578,3]
[352837788,1739355044281,-502.03674178,0.00020578,2]
[352837789,1739355044290,-500.0,0.00020578,3]
[352837790,1739355044299,-502.97307247,0.00020578,3]
[352837791,1739355044308,-505.56043186,0.00020578,3]
[352837792,1739355044317,-512.51739107,0.00020578,3]
[352837793,1739355044327,-500.0,0.00020578,3]
[352837794,1739355044337,-339.4,0.00020578,3]
[352837795,1739355044346,-500.0,0.00020578,3]
[352837796,1739355044355,-500.0,0.00020578,3]
[352837797,1739355044365,-500.0,0.00020578,3]
[352837798,1739355044375,-500.0,0.00020578,3]
[352837799,1739355044384,-520.2709715,0.00020578,3]
[352837800,1739355044393,-506.62051691,0.00020578,3]
[352837801,1739355044403,-500.0,0.00020578,3]
[352837802,1739355044412,-500.0,0.00020578,3]
[352837803,1739355044422,-500.0,0.00020578,3]
[352837804,1739355044433,-502.54954357,0.00020578,3]
[352837805,1739355044444,-500.0,0.00020578,3]
[352837806,1739355044453,-505.77285948,0.00020578,3]
[352837807,1739355044465,-500.0,0.00020578,3]
[352837808,1739355044476,-320.97164825,0.00020578,3]
[352837809,1739355044489,-504.50680288,0.00020578,3]
[352837810,1739355044500,-500.0,0.00020578,3]
[352837811,1739355044510,-500.0,0.00020578,3]
[352837812,1739355044520,-505.02229857,0.00020578,3]
[352837813,1739355044530,-503.26494574,0.00020578,3]
[352837814,1739355044542,-501.26026605,0.00020578,3]
[352837815,1739355044552,-500.0,0.00020578,3]
[352837816,1739355044563,-500.0,0.00020578,3]
[352837817,1739355044573,-516.43456762,0.00020578,3]
[352837818,1739355044584,-500.0,0.00020578,3]
[352837819,1739355044593,-505.22100558,0.00020578,3]
[352837820,1739355044603,-502.60239276,0.00020578,3]
[352837821,1739355044615,-500.0,0.00020578,3]
[352837822,1739355044625,-477.52294141,0.00020578,3]
[352837823,1739355044634,-500.0,0.00020578,3]
[352837824,1739355044645,-500.0,0.00020578,3]
[352837825,1739355044655,-503.42109767,0.00020578,3]
[352837826,1739355044666,-500.0,0.00020578,3]